bitfinex/quotes_BTCUSD_20230111
["timestamp","ask_amount","ask_price","bid_price","bid_amount"]
[1673426220185,0.00685047,17434.0,17433.0,3.12485636]
[1673426220771,0.00685047,17434.0,17433.0,2.55123236]
[1673426221543,0.43693541,17434.0,17433.0,2.55123236]
[1673426221794,0.00685047,17434.0,17433.0,2.55123236]
[1673426222050,0.00685047,17434.0,17433.0,2.98102708]
[1673426222266,0.00685047,17434.0,17433.0,2.72306875]
[1673426223470,0.43694121,17434.0,17433.0,2.72306875]
[1673426223723,0.43694121,17434.0,17433.0,2.55128977]
[1673426225064,0.00685047,17434.0,17433.0,2.55128977]
[1673426225317,0.00685047,17434.0,17433.0,2.72306875]
[1673426226619,0.00674098,17434.0,17433.0,2.72306875]
[1673426227141,0.00674098,17434.0,17433.0,3.29669275]
[1673426227361,0.00674098,17434.0,17433.0,2.95276461]
[1673426227630,0.00674098,17434.0,17433.0,2.37914061]
[1673426228173,0.00674098,17434.0,17433.0,1.94934589]
[1673426228478,0.00674098,17434.0,17433.0,2.67934683]
[1673426228947,0.00674098,17434.0,17433.0,2.37934683]
[1673426232079,0.55628664,17434.0,17433.0,2.14975469]
[1673426232352,0.43716763,17434.0,17433.0,1.9777922]
[1673426232549,0.60176763,17434.0,17433.0,1.9777922]
[1673426232815,0.17134098,17434.0,17433.0,1.9777922]
[1673426233314,0.16135142,17434.0,17433.0,2.14981314]
[1673426233572,0.16135142,17434.0,17433.0,2.14989292]
[1673426233573,0.5916553,17434.0,17433.0,2.14989292]
[1673426233822,0.5916553,17434.0,17433.0,1.80586106]
[1673426234078,0.5916553,17434.0,17433.0,0.65842294]
[1673426234332,0.16135142,17434.0,17433.0,2.14987431]
[1673426234570,0.16135142,17434.0,17433.0,1.97787249]
[1673426234796,0.16135142,17434.0,17433.0,2.14987431]
[1673426235324,0.16135142,17434.0,17433.0,1.97787249]
[1673426252366,0.16135142,17434.0,17433.0,2.40787343]
[1673426253340,0.16135142,17434.0,17433.0,2.14983498]
[1673426254303,0.16135142,17434.0,17433.0,2.40785411]
[1673426254827,0.16135142,17434.0,17433.0,2.14983498]
[1673426255325,0.16135142,17434.0,17433.0,1.97785621]
[1673426261910,0.52077442,17434.0,17433.0,1.97785621]
[1673426262430,0.92185231,17434.0,17433.0,1.97785621]
[1673426262703,0.92185231,17434.0,17433.0,0.20901291]
[1673426262704,2.42595497,17434.0,17433.0,0.20901291]
[1673426262971,2.85309903,17434.0,17433.0,0.037]
[1673426265035,2.85309903,17434.0,17431.0,0.43003508]
[1673426265262,0.6292,17432.0,17431.0,0.81065227]
[1673426265516,1.42084035,17432.0,17431.0,0.81065227]
[1673426265772,0.688623,17432.0,17431.0,0.81065227]
[1673426266027,1.12063976,17432.0,17431.0,0.81065227]
[1673426266290,1.12063976,17432.0,17431.0,0.20901291]
[1673426266548,0.76121676,17432.0,17431.0,0.20901291]
[1673426266803,1.12063976,17432.0,17431.0,0.20901291]
[1673426267067,0.76121676,17432.0,17431.0,0.20901291]
[1673426267328,1.12063976,17432.0,17431.0,0.20901291]
[1673426268062,0.76121676,17432.0,17431.0,0.20901291]
[1673426270312,1.12063976,17432.0,17431.0,0.20901291]
[1673426270568,1.12063976,17432.0,17431.0,0.037]
[1673426270819,0.76121676,17432.0,17431.0,0.037]
[1673426271076,0.76121676,17432.0,17431.0,0.20901291]
[1673426271847,1.12063976,17432.0,17431.0,0.20901291]
[1673426272111,0.76121676,17432.0,17431.0,0.20901291]
[1673426272369,1.12063976,17432.0,17431.0,0.037]
[1673426272632,1.12063976,17432.0,17431.0,0.20901291]
[1673426273442,0.76121676,17432.0,17431.0,0.20901291]
[1673426273689,1.12063976,17432.0,17431.0,0.20901291]
[1673426274452,0.76121676,17432.0,17431.0,0.20901291]
[1673426274748,1.12063976,17432.0,17431.0,0.20901291]
[1673426274981,0.76121676,17432.0,17431.0,0.20901291]
[1673426275995,0.76121676,17432.0,17431.0,0.46703508]
[1673426276240,0.76121676,17432.0,17431.0,0.20901291]
[1673426277237,1.12063976,17432.0,17431.0,0.20901291]
[1673426278975,0.76121676,17432.0,17431.0,0.20901291]
[1673426279721,1.12063976,17432.0,17431.0,0.20901291]
[1673426280649,0.76121676,17432.0,17431.0,0.20901291]
[1673426280909,1.12063976,17432.0,17431.0,0.20901291]
[1673426281158,0.95603976,17432.0,17431.0,0.20901291]
[1673426281399,0.59661676,17432.0,17431.0,0.20901291]
[1673426282873,0.1646,17432.0,17431.0,0.84484384]
[1673426283125,0.1646,17432.0,17431.0,0.84484136]
[1673426284398,0.1646,17432.0,17431.0,0.46703508]
[1673426285136,0.524023,17432.0,17431.0,0.46703508]
[1673426285387,0.9560885,17432.0,17431.0,0.46703508]
[1673426285662,0.5966655,17432.0,17431.0,0.46703508]
[1673426286171,0.1646,17432.0,17431.0,0.84400438]
[1673426287473,0.1646,17432.0,17431.0,1.01602333]
[1673426288433,0.1646,17432.0,17431.0,0.84380257]
[1673426288704,0.1646,17432.0,17431.0,2.1635286]
[1673426292435,0.97526187,17433.0,17431.0,2.1635286]
[1673426292728,0.97526187,17433.0,17432.0,0.171848]
[1673426293216,1.33468487,17433.0,17432.0,0.171848]
[1673426294197,1.35068487,17433.0,17432.0,0.171848]
[1673426295665,1.35068487,17433.0,17432.0,0.42987017]
[1673426295928,0.99126187,17433.0,17432.0,0.80669554]
[1673426296174,0.99126187,17433.0,17432.0,0.42987017]
[1673426296423,0.99126187,17433.0,17432.0,0.80705855]
[1673426297953,0.99126187,17433.0,17432.0,0.171848]
[1673426297954,1.35068487,17433.0,17432.0,0.171848]
[1673426299184,1.35068487,17433.0,17432.0,0.42987017]
[1673426299666,0.99126187,17433.0,17432.0,0.42987017]
[1673426300156,1.35068487,17433.0,17432.0,0.42987017]
[1673426302401,1.51528487,17433.0,17432.0,0.80708663]
[1673426304914,1.15586187,17433.0,17432.0,0.80708663]
[1673426307892,1.15586187,17433.0,17432.0,2.12677363]
[1673426308662,1.15586187,17433.0,17432.0,0.80722924]
[1673426312223,1.15586187,17433.0,17432.0,1.95474332]
[1673426312742,1.15586187,17433.0,17432.0,2.29877518]
[1673426312999,1.15586187,17433.0,17432.0,0.80722924]
[1673426313258,1.15586187,17433.0,17432.0,2.29881796]
[1673426313513,1.15586187,17433.0,17432.0,2.126786]
[1673426314033,1.15586187,17433.0,17432.0,1.95478824]
[1673426314254,1.15586187,17433.0,17432.0,2.12678641]
[1673426319556,1.15586187,17433.0,17432.0,2.12671641]
[1673426320912,1.15586187,17433.0,17432.0,2.12664641]
[1673426321637,1.15586187,17433.0,17432.0,2.12657641]
[1673426322596,0.99126187,17433.0,17432.0,2.12657641]
[1673426325644,0.99126187,17433.0,17432.0,2.29876518]
[1673426328977,0.99126187,17433.0,17432.0,1.86876424]
[1673426330186,0.99126187,17433.0,17432.0,2.29876518]
[1673426330187,0.99113446,17433.0,17432.0,2.29876518]
[1673426330475,0.5593,17433.0,17432.0,2.29876518]
[1673426330981,0.99118543,17433.0,17432.0,2.29876518]
[1673426331255,0.99113078,17433.0,17432.0,2.29876518]
[1673426331780,0.99113078,17433.0,17432.0,2.29869517]
[1673426332029,0.99113078,17433.0,17432.0,2.55681979]
[1673426332280,0.99113078,17433.0,17432.0,2.12681885]
[1673426332536,0.99113078,17433.0,17432.0,2.1268227]
[1673426332837,0.99113078,17433.0,17432.0,2.12675269]
[1673426333566,0.99113078,17433.0,17432.0,2.55675363]
[1673426333821,0.99113078,17433.0,17432.0,2.29855515]
[1673426334602,0.5593,17433.0,17432.0,2.29855515]
[1673426334896,0.5593,17433.0,17432.0,2.29848514]
[1673426335665,0.5593,17433.0,17432.0,2.29841513]
[1673426337215,1.06548404,17433.0,17432.0,2.29841513]
[1673426337469,1.42490704,17433.0,17432.0,2.12654464]
[1673426337724,1.42490704,17433.0,17432.0,0.80708463]
[1673426337979,1.42490704,17433.0,17432.0,0.43021822]
[1673426339530,1.42490704,17433.0,17432.0,0.17208777]
[1673426339826,1.42490704,17433.0,17432.0,0.17180692]
[1673426340077,1.89504142,17433.0,17432.0,0.17180692]
[1673426340869,1.89504142,17433.0,17432.0,0.171525]
[1673426341110,1.89504142,17433.0,17431.0,0.60216231]
[1673426341360,1.89504142,17433.0,17431.0,0.25813045]
[1673426341361,0.86560704,17432.0,17431.0,0.25813045]
[1673426341612,0.50618404,17432.0,17431.0,0.25813045]
[1673426341869,0.50618404,17432.0,17431.0,0.60216231]
[1673426342377,0.50618404,17432.0,17431.0,1.74974742]
[1673426342596,0.50618404,17432.0,17431.0,0.60216231]
[1673426342847,0.50618404,17432.0,17431.0,1.78674775]
[1673426343105,1.007,17433.0,17431.0,1.78674775]
[1673426343106,1.51318404,17433.0,17431.0,1.78674775]
[1673426343377,1.51318404,17433.0,17432.0,0.25809855]
[1673426343635,1.51318404,17433.0,17431.0,0.63913041]
[1673426343873,1.16560704,17432.0,17431.0,0.63906147]
[1673426344124,0.80618404,17432.0,17431.0,1.74964437]
[1673426344376,0.50618404,17432.0,17431.0,1.78664768]
[1673426344651,1.51318404,17433.0,17431.0,1.95848113]
[1673426344895,1.51318404,17433.0,17432.0,0.25806884]
[1673426345392,1.87260704,17433.0,17431.0,0.60196282]
[1673426345682,0.86560704,17432.0,17431.0,0.63896282]
[1673426345901,0.86560704,17432.0,17431.0,0.60196282]
[1673426346168,0.50618404,17432.0,17431.0,1.74953248]
[1673426346419,1.52918404,17433.0,17431.0,1.74953248]
[1673426346676,1.51318404,17433.0,17431.0,0.60196282]
[1673426346941,1.51318404,17433.0,17431.0,1.03196376]
[1673426347150,1.51318404,17433.0,17432.0,0.25806884]
[1673426347694,1.87260704,17433.0,17432.0,0.2579999]
[1673426347949,0.3,17432.0,17431.0,0.81089492]
[1673426348201,0.50507852,17432.0,17431.0,1.52845597]
[1673426348425,1.51207852,17433.0,17431.0,1.49145597]
[1673426348712,1.52807852,17433.0,17431.0,0.34361309]
[1673426348985,1.16450152,17432.0,17431.0,0.34361309]
[1673426349239,0.50507852,17432.0,17431.0,1.52818128]
[1673426349508,0.50507852,17432.0,17431.0,1.49118128]
[1673426349761,0.50507852,17432.0,17431.0,0.38054415]
[1673426350036,0.80507852,17432.0,17431.0,0.34354415]
[1673426350291,0.50507852,17432.0,17431.0,0.38054415]
[1673426350845,0.50507852,17432.0,17431.0,0.88496154]
[1673426351840,0.50507852,17432.0,17431.0,0.71341174]
[1673426352879,0.50507852,17432.0,17431.0,0.7133428]
[1673426353666,0.50507852,17432.0,17431.0,0.71327386]
[1673426353911,0.80507852,17432.0,17431.0,0.71327386]
[1673426354458,0.50507852,17432.0,17431.0,0.71327386]
[1673426354770,0.50507852,17432.0,17431.0,0.71320492]
[1673426355498,1.21207852,17433.0,17431.0,0.71320492]
[1673426355719,0.3,17432.0,17431.0,0.0366553]
[1673426355970,0.50507852,17432.0,17431.0,0.54088623]
[1673426356231,1.51207852,17433.0,17431.0,0.54088623]
[1673426356488,1.51207852,17433.0,17432.0,0.17197269]
[1673426356746,1.51207852,17433.0,17432.0,0.17190375]
[1673426356997,1.87150152,17433.0,17432.0,0.17190375]
[1673426357768,1.87150152,17433.0,17432.0,0.17162291]
[1673426358550,1.52807852,17433.0,17432.0,0.17162291]
[1673426358809,1.88750152,17433.0,17432.0,0.17134207]
[1673426359317,1.58750152,17433.0,17432.0,0.17134207]
[1673426359540,1.58750152,17433.0,17432.0,0.42929989]
[1673426359788,1.58750152,17433.0,17432.0,0.42901905]
[1673426360799,1.58750152,17433.0,17432.0,0.42873821]
[1673426361809,1.22807852,17433.0,17432.0,0.42845737]
[1673426362845,1.34113573,17433.0,17432.0,0.42817653]
[1673426363871,1.34113573,17433.0,17432.0,0.16993788]
[1673426364134,2.00055873,17433.0,17432.0,0.16993788]
[1673426365644,2.00055873,17433.0,17432.0,0.16986887]
[1673426366674,2.00055873,17433.0,17431.0,0.25795782]
[1673426366935,1.16450152,17432.0,17431.0,0.76276616]
[1673426367188,0.50507852,17432.0,17431.0,0.76276616]
[1673426367486,1.64113573,17433.0,17431.0,0.76276616]
[1673426367725,0.3,17432.0,17431.0,1.10664423]
[1673426367967,0.3,17432.0,17431.0,2.25421967]
[1673426367968,0.50507852,17432.0,17431.0,2.25421967]
[1673426368220,1.62513573,17433.0,17431.0,1.14264423]
[1673426368487,1.62513573,17433.0,17431.0,0.29388879]
[1673426368761,1.62513573,17433.0,17431.0,0.29381976]
[1673426369010,0.80507852,17432.0,17431.0,0.79862771]
[1673426369506,0.50507852,17432.0,17431.0,0.79862771]
[1673426369770,1.62513573,17433.0,17431.0,1.14250578]
[1673426369998,1.62513573,17433.0,17431.0,1.78527516]
[1673426370246,1.62513573,17433.0,17431.0,0.60169783]
[1673426370500,0.50507852,17432.0,17431.0,1.14251643]
[1673426370748,0.80507852,17432.0,17431.0,1.1064474]
[1673426370972,0.50507852,17432.0,17431.0,1.1424474]
[1673426371228,0.50507852,17432.0,17431.0,0.7985003]
[1673426371473,0.50507852,17432.0,17431.0,1.1424474]
[1673426371729,0.50507852,17432.0,17431.0,0.76243127]
[1673426371988,0.50507852,17432.0,17431.0,0.79843127]
[1673426372245,0.50507852,17432.0,17431.0,1.14237837]
[1673426372743,0.50507852,17432.0,17431.0,1.14230933]
[1673426373487,0.50507852,17432.0,17431.0,0.79836223]
[1673426373734,0.50507852,17432.0,17431.0,0.79829319]
[1673426373980,0.80507852,17432.0,17431.0,0.79829319]
[1673426374241,1.16450152,17432.0,17431.0,0.79756709]
[1673426374495,0.86450152,17432.0,17431.0,0.79756709]
[1673426374750,0.50507837,17432.0,17431.0,1.09749805]
[1673426374991,0.50507837,17432.0,17431.0,0.79749805]
[1673426375499,0.86450137,17432.0,17431.0,0.79749805]
[1673426375786,0.80507837,17432.0,17431.0,0.96947043]
[1673426376042,0.50507837,17432.0,17431.0,0.96947043]
[1673426376785,0.50507837,17432.0,17431.0,0.96940139]
[1673426377034,0.50507837,17432.0,17431.0,1.31334849]
[1673426377298,0.50507837,17432.0,17431.0,1.14130707]
[1673426377574,0.50507837,17432.0,17431.0,0.9694183]
[1673426377826,0.80507837,17432.0,17431.0,0.96934819]
[1673426378064,0.50507837,17432.0,17431.0,0.96934819]
[1673426378317,0.50507837,17432.0,17431.0,1.31329529]
[1673426378562,0.50507837,17432.0,17431.0,0.96934819]
[1673426378861,0.80507837,17432.0,17431.0,0.96927806]
[1673426379087,0.80507837,17432.0,17431.0,0.96970153]
[1673426379327,0.80507837,17432.0,17431.0,0.46518556]
[1673426379583,0.80507837,17432.0,17431.0,0.20805833]
[1673426379828,0.80507837,17432.0,17431.0,0.2079882]
[1673426380605,0.96967837,17432.0,17431.0,0.2079882]
[1673426380864,0.96967837,17432.0,17431.0,0.20791807]
[1673426381881,0.96967837,17432.0,17431.0,0.20784794]
[1673426382949,0.96967837,17432.0,17431.0,0.20777781]
[1673426383674,0.96967837,17432.0,17431.0,0.20770768]
[1673426384790,0.96967837,17432.0,17431.0,0.20763755]
[1673426385560,0.96967837,17432.0,17431.0,0.71222943]
[1673426385795,0.96967837,17432.0,17431.0,0.67656814]
[1673426386039,0.96967837,17432.0,17431.0,0.71256814]
[1673426386766,0.96967837,17432.0,17431.0,0.71249801]
[1673426387249,0.96967837,17432.0,17431.0,0.20791807]
[1673426387756,0.96967837,17432.0,17431.0,0.20784794]
[1673426388525,0.96967837,17432.0,17431.0,0.46586075]
[1673426388777,0.96967837,17432.0,17431.0,0.96874503]
[1673426389777,0.96967837,17432.0,17431.0,0.46579062]
[1673426390044,0.96967837,17432.0,17431.0,0.96872111]
[1673426391086,0.66967837,17432.0,17431.0,0.96872111]
[1673426392639,0.66967837,17432.0,17431.0,0.93272111]
[1673426393112,0.66967837,17432.0,17431.0,2.25246399]
[1673426393601,0.68567837,17432.0,17431.0,2.25246399]
[1673426394106,0.68567837,17432.0,17431.0,1.1048904]
[1673426394371,0.68567837,17432.0,17431.0,0.7609433]
[1673426394900,0.68567837,17432.0,17431.0,1.10482027]
[1673426395501,0.68567837,17432.0,17431.0,2.25238757]
[1673426395756,0.68567837,17432.0,17431.0,2.25231744]
[1673426396803,0.68567837,17432.0,17431.0,2.25224731]
[1673426397357,0.1806,17432.0,17431.0,2.25224731]
[1673426397607,0.1806,17432.0,17431.0,2.42444583]
[1673426397820,0.1806,17432.0,17431.0,2.4243757]
[1673426398322,0.1806,17432.0,17431.0,1.99437476]
[1673426398609,0.1806,17432.0,17431.0,2.4243757]
[1673426398866,0.1806,17432.0,17431.0,2.42430557]
[1673426399113,0.1806,17432.0,17431.0,1.99430463]
[1673426399355,0.1806,17432.0,17431.0,2.42430557]
[1673426399858,0.1806,17432.0,17431.0,2.42423544]
[1673426400571,0.016,17432.0,17431.0,2.42423544]
[1673426400840,0.016,17432.0,17431.0,2.42416531]
[1673426401861,0.013905,17432.0,17431.0,2.42418803]
[1673426402628,0.013905,17432.0,17431.0,2.42409518]
[1673426402888,0.013905,17432.0,17431.0,2.42402505]
[1673426403743,0.013905,17432.0,17431.0,2.42395492]
[1673426404507,0.013905,17432.0,17431.0,2.42404777]
[1673426404772,0.013905,17432.0,17431.0,2.42388479]
[1673426405269,0.51898352,17432.0,17431.0,2.42388479]
[1673426405735,0.013905,17432.0,17431.0,2.25190399]
[1673426406009,0.013905,17432.0,17431.0,2.42390751]
[1673426406813,0.013905,17432.0,17431.0,2.42383738]
[1673426407023,0.013905,17432.0,17431.0,2.42374453]
[1673426407299,0.013905,17432.0,17431.0,2.07989028]
[1673426407552,0.013905,17432.0,17431.0,2.42375771]
[1673426407811,0.013905,17432.0,17431.0,2.42368758]
[1673426408851,0.013905,17432.0,17431.0,2.42361745]
[1673426409111,0.013905,17432.0,17431.0,2.07965717]
[1673426409848,0.013905,17432.0,17431.0,2.07937477]
[1673426410628,0.013905,17432.0,17431.0,2.43879777]
[1673426410879,0.013905,17432.0,17431.0,3.01220537]
[1673426411858,0.013905,17432.0,17431.0,3.01192295]
[1673426412890,0.013905,17432.0,17431.0,3.01164053]
[1673426413141,0.013905,17432.0,17431.0,2.99603899]
[1673426413901,0.013905,17432.0,17431.0,2.99575657]
[1673426414687,0.013905,17432.0,17431.0,2.99547416]
[1673426415207,0.74946812,17433.0,17431.0,2.99547416]
[1673426415475,0.74946812,17433.0,17432.0,0.42975054]
[1673426415741,0.74946812,17433.0,17432.0,0.42946814]
[1673426416782,0.74946812,17433.0,17432.0,0.42918576]
[1673426417309,0.76346812,17433.0,17432.0,0.42918576]
[1673426417837,0.76346812,17433.0,17432.0,0.42890338]
[1673426418870,0.76346812,17433.0,17432.0,0.42862101]
[1673426419865,0.76346812,17433.0,17432.0,0.42833864]
[1673426420898,0.76346812,17433.0,17432.0,0.42805629]
[1673426421147,0.76346812,17433.0,17432.0,0.17190022]
[1673426421906,0.76346812,17433.0,17432.0,0.17161787]
[1673426422170,0.76346812,17433.0,17432.0,0.05389318]
[1673426422427,0.59886812,17433.0,17432.0,0.05389318]
[1673426422838,0.59886812,17433.0,17432.0,0.05361085]
[1673426423714,0.59886812,17433.0,17432.0,0.05332852]
[1673426424709,0.59886812,17433.0,17432.0,0.05304626]
[1673426425718,0.59886812,17433.0,17432.0,0.052764]
[1673426426723,0.59886812,17433.0,17432.0,0.05248282]
[1673426429665,0.59886812,17433.0,17432.0,0.54448087]
[1673426429926,0.59886812,17433.0,17432.0,0.802462]
[1673426430431,0.59886812,17433.0,17432.0,0.05248282]
[1673426430684,0.59886812,17433.0,17432.0,0.05220164]
[1673426432752,0.95829112,17433.0,17432.0,0.05192046]
[1673426433027,0.59886812,17433.0,17432.0,0.05192046]
[1673426433530,0.95829112,17433.0,17432.0,0.05192046]
[1673426433780,0.59886812,17433.0,17432.0,0.30990159]
[1673426434540,0.95829112,17433.0,17432.0,0.30990159]
[1673426435310,0.95829112,17433.0,17432.0,0.05192046]
[1673426436059,0.95829112,17433.0,17432.0,0.80180986]
[1673426437593,0.59886812,17433.0,17432.0,0.80294475]
[1673426437846,0.59886812,17433.0,17432.0,0.80152887]
[1673426438167,0.59886812,17433.0,17432.0,1.94905104]
[1673426438409,0.59886812,17433.0,17432.0,0.80152887]
[1673426438671,0.95829112,17433.0,17432.0,0.80152887]
[1673426438923,1.25829112,17433.0,17432.0,0.80124788]
[1673426439180,1.25829112,17433.0,17432.0,0.30933961]
[1673426439951,1.25829112,17433.0,17432.0,0.30905862]
[1673426440675,1.25829112,17433.0,17432.0,0.80039241]
[1673426440926,1.25829112,17433.0,17432.0,0.80011142]
[1673426441958,1.25829112,17433.0,17432.0,0.79983043]
[1673426442202,0.89886812,17433.0,17432.0,0.30849664]
[1673426442460,1.42289112,17433.0,17432.0,0.30849664]
[1673426442712,1.42289112,17433.0,17432.0,0.30821565]
[1673426443736,1.42289112,17433.0,17432.0,0.30793466]
[1673426443998,1.42289112,17433.0,17432.0,0.04995353]
[1673426444521,1.42289112,17433.0,17431.0,0.60180259]
[1673426444781,0.85639274,17432.0,17431.0,1.10942359]
[1673426445061,0.85639274,17432.0,17431.0,0.76560213]
[1673426445298,0.49696974,17432.0,17431.0,0.76560213]
[1673426445541,0.49696974,17432.0,17431.0,0.76829376]
[1673426445791,0.49678671,17432.0,17431.0,0.80528684]
[1673426446045,0.79678671,17432.0,17431.0,0.29498113]
[1673426446809,0.79678671,17432.0,17431.0,0.29470013]
[1673426447062,0.79678671,17432.0,17431.0,0.25770013]
[1673426447323,0.79678671,17432.0,17431.0,0.29470013]
[1673426447573,0.79678671,17432.0,17431.0,0.037]
[1673426447831,0.79678671,17432.0,17431.0,0.036719]
[1673426448581,1.48520971,17432.0,17431.0,0.036719]
[1673426448832,1.48520971,17432.0,17431.0,0.036438]
[1673426449357,1.65534409,17432.0,17431.0,0.036438]
[1673426449875,1.65534409,17432.0,17431.0,0.036157]
[1673426450170,1.48520971,17432.0,17431.0,0.036157]
[1673426450904,1.48520971,17432.0,17431.0,0.035876]
[1673426451682,1.48520971,17432.0,17431.0,0.035595]
[1673426452445,1.81894409,17432.0,17431.0,0.035595]
[1673426452702,1.81894409,17432.0,17431.0,0.035314]
[1673426452703,2.96625809,17432.0,17431.0,0.035314]
[1673426453237,3.22326777,17432.0,17431.0,0.035314]
[1673426453506,3.39581296,17432.0,17431.0,0.035314]
[1673426453757,3.39581296,17432.0,17431.0,0.035033]
[1673426453758,3.39607135,17432.0,17431.0,0.035033]
[1673426454290,3.95778788,17432.0,17431.0,0.035033]
[1673426454540,4.12887451,17432.0,17431.0,0.035033]
[1673426454877,4.12887451,17432.0,17431.0,0.03475092]
[1673426455120,3.95764219,17432.0,17431.0,0.03475092]
[1673426455422,4.12887451,17432.0,17431.0,0.03475092]
[1673426455683,4.12887451,17432.0,17431.0,0.03446884]
[1673426455952,4.4616064,17432.0,17431.0,0.03446884]
[1673426456204,3.95751376,17432.0,17431.0,0.03429978]
[1673426456457,4.90691577,17432.0,17431.0,0.03429978]
[1673426456759,4.64256107,17432.0,17431.0,0.0340177]
[1673426457018,4.64256107,17432.0,17431.0,0.01120695]
[1673426457281,5.15771596,17432.0,17431.0,0.01120695]
[1673426457547,5.15771596,17432.0,17427.0,0.01500247]
[1673426457548,0.3,17431.0,17427.0,0.01500247]
[1673426457817,0.1639,17428.0,17427.0,0.01500247]
[1673426458101,2.70520725,17428.0,17427.0,0.01500247]
[1673426458361,2.46752936,17428.0,17427.0,0.01500247]
[1673426458892,2.46752936,17428.0,17427.0,0.01472033]
[1673426459410,2.79542936,17428.0,17427.0,0.01472033]
[1673426459674,2.84242936,17428.0,17427.0,0.02572033]
[1673426459942,2.84242936,17428.0,17427.0,0.02543819]
[1673426460736,2.84242936,17428.0,17427.0,0.02515712]
[1673426461785,2.84242936,17428.0,17427.0,0.02487605]
[1673426462886,2.84242936,17428.0,17427.0,0.02459496]
[1673426463156,1.69485136,17428.0,17427.0,0.02459496]
[1673426463632,1.36675136,17428.0,17427.0,0.02459496]
[1673426463890,0.5107,17428.0,17427.0,0.02431389]
[1673426464156,1.355387,17428.0,17427.0,0.02431389]
[1673426464921,1.355387,17428.0,17427.0,0.02403282]
[1673426465703,1.355387,17428.0,17427.0,0.02375175]
[1673426466741,1.355387,17428.0,17427.0,0.02347068]
[1673426467761,0.995964,17428.0,17427.0,0.02318961]
[1673426468596,1.355387,17428.0,17427.0,0.02318961]
[1673426468860,1.355387,17428.0,17427.0,0.02290854]
[1673426469935,1.355387,17428.0,17427.0,0.02262747]
[1673426470971,1.355387,17428.0,17427.0,0.0223464]
[1673426471813,1.355387,17428.0,17427.0,0.02206533]
[1673426472615,1.191687,17428.0,17427.0,0.02206533]
[1673426472867,1.191687,17428.0,17427.0,0.02178426]
[1673426473381,0.832264,17428.0,17427.0,0.02178426]
[1673426473934,0.832264,17428.0,17427.0,0.02150319]
[1673426474703,1.191687,17428.0,17427.0,0.02150319]
[1673426474968,1.519887,17428.0,17427.0,0.02122212]
[1673426475753,1.519887,17428.0,17427.0,0.02094105]
[1673426476840,1.519887,17428.0,17427.0,0.02065998]
[1673426477885,1.519987,17428.0,17427.0,0.02037891]
[1673426478930,1.519987,17428.0,17427.0,0.02009784]
[1673426479752,1.519987,17428.0,17427.0,0.01981677]
[1673426480634,1.519987,17428.0,17427.0,0.0195357]
[1673426480849,1.355387,17428.0,17427.0,0.0195357]
[1673426481782,1.355387,17428.0,17427.0,0.01925463]
[1673426482695,1.355387,17428.0,17427.0,0.01897356]
[1673426483628,1.355387,17428.0,17427.0,0.01869249]
[1673426484779,1.355387,17428.0,17427.0,0.01841142]
[1673426485675,1.46468252,17428.0,17427.0,0.01813035]
[1673426486789,0.3,17427.0,17424.0,1.54375435]
[1673426487028,0.48316548,17426.0,17424.0,1.54375435]
[1673426487255,0.72084337,17426.0,17424.0,1.54375435]
[1673426487492,0.48316548,17426.0,17424.0,1.54375435]
[1673426487712,0.48320189,17426.0,17424.0,1.54347324]
[1673426487905,0.48320189,17426.0,17424.0,1.74936024]
[1673426488807,0.48320189,17426.0,17424.0,1.74907913]
[1673426489032,0.54020189,17426.0,17424.0,1.75207913]
[1673426489922,0.54020189,17426.0,17424.0,1.75179802]
[1673426490694,0.54020189,17426.0,17424.0,1.75151691]
[1673426491730,0.54020189,17426.0,17424.0,1.7512358]
[1673426491994,0.54020189,17426.0,17425.0,0.76299311]
[1673426492774,0.48320189,17426.0,17425.0,0.76271201]
[1673426493016,0.78288916,17427.0,17425.0,0.76271201]
[1673426493285,0.54098878,17426.0,17425.0,0.77271201]
[1673426493782,0.54098878,17426.0,17425.0,0.76243091]
[1673426494036,0.48298878,17426.0,17425.0,0.76243091]
[1673426494291,0.84094561,17427.0,17425.0,0.77243091]
[1673426494612,0.48293911,17426.0,17425.0,2.26419583]
[1673426494826,0.84093918,17427.0,17425.0,2.26439971]
[1673426495087,0.84093918,17427.0,17425.0,0.60156324]
[1673426495088,0.78293918,17427.0,17425.0,0.60156324]
[1673426495339,0.54098899,17426.0,17425.0,0.61156324]
[1673426495591,0.54098899,17426.0,17425.0,1.7495072]
[1673426495880,0.54098899,17426.0,17425.0,0.26746068]
[1673426496111,0.48298899,17426.0,17425.0,1.7492291]
[1673426496363,0.058,17426.0,17425.0,1.7592291]
[1673426496614,0.54097735,17426.0,17425.0,1.7592291]
[1673426496862,0.54097735,17426.0,17425.0,1.41512654]
[1673426497371,0.54097735,17426.0,17425.0,0.26717958]
[1673426497633,1.10685524,17426.0,17425.0,0.01]
[1673426497895,1.22860035,17426.0,17425.0,0.0097189]
[1673426498148,1.39990713,17426.0,17425.0,0.0097189]
[1673426498408,2.89233222,17426.0,17425.0,0.0097189]
[1673426498663,3.19233222,17426.0,17425.0,0.0097189]
[1673426498923,3.78479919,17426.0,17425.0,0.0097189]
[1673426499182,3.78479919,17426.0,17422.0,0.17201806]
[1673426499183,0.6035,17425.0,17422.0,0.17201806]
[1673426499444,0.6035,17425.0,17421.0,0.3660029]
[1673426499445,0.9370453,17424.0,17421.0,0.1941995]
[1673426499741,0.86098052,17423.0,17421.0,0.1941995]
[1673426499962,1.16098052,17422.0,17421.0,0.1941995]
[1673426500223,0.96635752,17422.0,17421.0,0.02218144]
[1673426500491,1.32578052,17422.0,17421.0,0.02218144]
[1673426501005,0.96635752,17422.0,17421.0,0.02218144]
[1673426501244,1.32578052,17422.0,17421.0,0.02218144]
[1673426501769,0.97235752,17422.0,17421.0,0.02218144]
[1673426502023,1.33178052,17422.0,17421.0,0.02218144]
[1673426502812,0.97235752,17422.0,17421.0,0.02218144]
[1673426507451,0.96930045,17422.0,17421.0,0.02218144]
[1673426511572,1.32872345,17422.0,17421.0,0.02218144]
[1673426512078,0.96930045,17422.0,17421.0,0.02218144]
[1673426512602,0.80450045,17422.0,17421.0,0.02218144]
[1673426512855,1.16392345,17422.0,17421.0,0.02218144]
[1673426514642,0.80450045,17422.0,17421.0,0.02218144]
[1673426515114,1.16392345,17422.0,17421.0,0.02218144]
[1673426515904,0.80450045,17422.0,17421.0,0.02218144]
[1673426516168,1.16392345,17422.0,17421.0,0.02218144]
[1673426521316,1.16220345,17422.0,17421.0,0.02218144]
[1673426522602,1.32680345,17422.0,17421.0,0.02218144]
[1673426523613,1.32080345,17422.0,17421.0,0.02218144]
[1673426524164,1.39280345,17422.0,17421.0,0.02218144]
[1673426524656,1.39310345,17422.0,17421.0,0.02218144]
[1673426530492,0.072,17422.0,17421.0,0.60497379]
[1673426530752,0.072,17422.0,17421.0,0.96439679]
[1673426530997,0.072,17422.0,17421.0,1.71043385]
[1673426531243,0.072,17422.0,17421.0,2.28445285]
[1673426532243,0.072,17422.0,17421.0,3.03695773]